fUST/lending_fUST_20241112
["ID","MTS","AMOUNT","RATE_DAILY","PERIOD"]
[342070598,1731403835610,-382.0391553,0.00024039,2]
[342070599,1731403835621,-1397.87400819,0.00024039,2]
[342070600,1731403835631,-256.60571095,0.00024658,2]
[342070601,1731403835641,-500.921498,0.00024658,4]
[342070602,1731403835650,-300.0,0.00024886,2]
[342070603,1731403835659,-300.0,0.00024886,2]
[342070604,1731403835669,-1123.0,0.00024887,2]
[342070605,1731403835678,-2390.0,0.00024887,2]
[342070606,1731403835687,-500.0,0.00025,17]
[342070607,1731403835696,-358.31156282,0.00025155,2]
[342070608,1731403835706,-1989.71787863,0.00025244,2]
[342070609,1731403835717,-3780.2666902,0.00025244,2]
[342070610,1731403835727,-157.25,0.00025255,2]
[342070611,1731403835736,-152.0,0.0002526,2]
[342070612,1731403835745,-201.19,0.00025342,3]
[342070613,1731403835755,-500.0,0.00025342,2]
[342070614,1731403835765,-603.6,0.00025342,3]
[342070615,1731403835775,-662.24578401,0.00025344,2]
[342070616,1731403835784,-402.39,0.00025344,3]
[342070617,1731403835794,-12948.19,0.00025344,10]
[342070618,1731403835803,-500.0,0.00025351,2]
[342070619,1731403835813,-508.59539179,0.00025351,2]
[342070620,1731403835822,-500.0,0.00025351,2]
[342070621,1731403835836,-500.0,0.00025351,2]
[342070622,1731403835849,-500.0,0.00025351,2]
[342070623,1731403835859,-500.0,0.00025351,2]
[342070624,1731403835870,-500.0,0.00025351,2]
[342070625,1731403835879,-500.0,0.00025351,2]
[342070626,1731403835889,-500.0,0.00025351,2]
[342070627,1731403835898,-500.0,0.00025351,2]
[342070628,1731403835908,-500.0,0.00025351,2]
[342070629,1731403835917,-466.66763837,0.00025351,2]
[342070630,1731403835927,-500.0,0.00025351,2]
[342070631,1731403835936,-500.0,0.00025351,2]
[342070632,1731403835945,-500.0,0.00025351,2]
[342070633,1731403835954,-500.0,0.00025351,2]
[342070634,1731403835963,-500.0,0.00025351,2]
[342070635,1731403835973,-500.0,0.00025351,2]
[342070636,1731403835982,-500.0,0.00025351,2]
[342070637,1731403835991,-500.0,0.00025351,2]
[342070638,1731403836001,-500.0,0.00025351,2]
[342070639,1731403836010,-500.0,0.00025351,2]
[342070640,1731403836019,-500.0,0.00025351,2]
[342070641,1731403836029,-500.0,0.00025351,2]
[342070642,1731403836039,-500.0,0.00025351,2]
[342070643,1731403836048,-500.0,0.00025351,2]
[342070644,1731403836058,-500.0,0.00025351,2]
[342070645,1731403836067,-500.0,0.00025351,2]
[342070646,1731403836079,-354.976323,0.00025351,2]
[342070647,1731403836089,-500.0,0.00025351,2]
[342070648,1731403836098,-500.0,0.00025351,2]
[342070649,1731403836108,-500.0,0.00025351,2]
[342070650,1731403836119,-500.0,0.00025351,2]
[342070651,1731403836127,-500.0,0.00025351,2]
[342070652,1731403836137,-500.0,0.00025351,2]
[342070653,1731403836147,-500.0,0.00025351,2]
[342070654,1731403836157,-500.0,0.00025351,2]
[342070655,1731403836166,-500.0,0.00025351,2]
[342070656,1731403836176,-500.0,0.00025351,2]
[342070657,1731403836186,-500.0,0.00025351,2]
[342070658,1731403836195,-500.0,0.00025351,2]
[342070659,1731403836205,-500.0,0.00025351,2]
[342070660,1731403836214,-500.0,0.00025351,2]
[342070661,1731403836224,-500.0,0.00025351,2]
[342070662,1731403836233,-500.0,0.00025351,2]
[342070663,1731403836243,-500.0,0.00025351,2]
[342070664,1731403836252,-500.0,0.00025351,2]
[342070665,1731403836262,-500.0,0.00025351,2]
[342070666,1731403836271,-500.0,0.00025351,2]
[342070667,1731403836280,-500.0,0.00025351,2]
[342070668,1731403836289,-500.0,0.00025351,2]
[342070669,1731403836298,-500.0,0.00025351,2]
[342070670,1731403836307,-500.0,0.00025351,2]
[342070671,1731403836317,-500.0,0.00025351,2]
[342070672,1731403836328,-500.0,0.00025351,2]
[342070673,1731403836338,-500.0,0.00025351,2]
[342070674,1731403836348,-500.0,0.00025351,2]
[342070675,1731403836363,-500.0,0.00025351,2]
[342070676,1731403836373,-500.0,0.00025351,2]
[342070677,1731403836383,-500.0,0.00025351,2]
[342070678,1731403836395,-500.0,0.00025351,2]
[342070679,1731403836404,-500.0,0.00025351,2]
[342070680,1731403836414,-500.0,0.00025351,2]
[342070681,1731403836423,-500.0,0.00025351,2]
[342070682,1731403836436,-280.88715534,0.00025351,2]
[342070683,1731403836446,-500.0,0.00025351,2]
[342070684,1731403836456,-500.0,0.00025351,2]
[342070685,1731403836465,-500.0,0.00025351,2]
[342070686,1731403836475,-500.0,0.00025351,2]
[342070687,1731403836485,-500.0,0.00025351,2]
[342070688,1731403836494,-500.0,0.00025352,2]
[342070689,1731403836503,-500.0,0.00025352,2]
[342070690,1731403836512,-500.0,0.00025352,2]
[342070691,1731403836522,-452.50721678,0.00025352,2]
[342070692,1731403836531,-500.0,0.00025352,2]
[342070693,1731403836540,-500.0,0.00025352,2]
[342070694,1731403836550,-1462.86,0.00025352,2]
[342070695,1731403836559,-500.0,0.00025352,2]
[342070696,1731403836568,-500.0,0.00025352,2]
[342070697,1731403836578,-3149.48,0.00025352,2]
[342070698,1731403836587,-500.0,0.00025352,2]
[342070699,1731403836596,-500.0,0.00025352,2]
[342070700,1731403836605,-151.0,0.00025353,7]
[342070701,1731403836614,-151.0,0.00025353,7]
[342070702,1731403836624,-179.200377,0.00025353,7]
[342070703,1731403836633,-179.200377,0.00025353,7]
[342070704,1731403836643,-179.200377,0.00025353,7]
[342070705,1731403836652,-179.200377,0.00025353,7]
[342070706,1731403836662,-279.60941566,0.00025353,2]
[342070707,1731403836671,-325.82427294,0.00025353,2]
[342070708,1731403836681,-271.028983,0.00025353,2]
[342070709,1731403836690,-500.0,0.00025353,2]
[342070710,1731403836699,-500.0,0.00025353,2]
[342070711,1731403836710,-321.64633211,0.00025353,2]
[342070712,1731403836719,-246.72584132,0.00025353,2]
[342070713,1731403836728,-500.0,0.00025353,2]
[342070714,1731403836737,-228.1872839,0.00025353,2]
[342070715,1731403836747,-500.0,0.00025354,2]
[342070716,1731403836756,-500.0,0.00025354,2]
[342070717,1731403836765,-500.0,0.00025354,2]
[342070718,1731403836775,-500.0,0.00025354,2]
[342070719,1731403836784,-500.0,0.00025354,2]
[342070720,1731403836793,-500.0,0.00025354,2]
[342070721,1731403836802,-500.0,0.00025354,2]
[342070722,1731403836811,-500.0,0.00025354,2]
[342070723,1731403836821,-500.0,0.00025354,2]
[342070724,1731403836832,-500.0,0.00025354,2]
[342070725,1731403836841,-500.0,0.00025354,2]
[342070726,1731403836851,-500.0,0.00025354,2]
[342070727,1731403836861,-819.54,0.00025354,2]
[342070728,1731403836870,-215.81812675,0.00025354,2]
[342070729,1731403836879,-552.68,0.00025354,2]
[342070730,1731403836889,-500.0,0.00025354,2]
[342070731,1731403836898,-500.0,0.00025354,2]
[342070732,1731403836908,-500.0,0.00025354,2]
[342070733,1731403836917,-500.0,0.00025354,2]
[342070734,1731403836927,-500.0,0.00025354,2]
[342070735,1731403836936,-500.0,0.00025354,2]
[342070736,1731403836946,-500.0,0.00025354,2]
[342070737,1731403836955,-151.0,0.00025354,7]
[342070738,1731403836965,-151.0,0.00025354,7]
[342070739,1731403836975,-510.31,0.00025354,2]
[342070740,1731403836984,-151.0,0.00025355,7]
[342070741,1731403836993,-500.0,0.00025364,2]
[342070742,1731403837003,-500.0,0.00025364,2]
[342070743,1731403837012,-500.0,0.00025364,2]
[342070744,1731403837022,-500.0,0.00025364,2]
[342070745,1731403837031,-500.0,0.00025364,2]
[342070746,1731403837040,-500.0,0.00025364,2]
[342070747,1731403837049,-161.72425241,0.00025364,2]
[342070748,1731403837058,-500.0,0.00025364,2]
[342070749,1731403837068,-500.0,0.00025364,2]
[342070750,1731403837079,-538.25843055,0.00025364,2]
[342070751,1731403837088,-500.0,0.00025364,2]
[342070752,1731403837097,-500.0,0.00025364,2]
[342070753,1731403837107,-500.0,0.00025364,2]
[342070754,1731403837116,-500.0,0.00025364,2]
[342070755,1731403837125,-500.0,0.00025364,2]
[342070756,1731403837134,-500.0,0.00025364,2]
[342070757,1731403837144,-500.0,0.00025364,2]
[342070758,1731403837153,-465.50327333,0.00025364,2]
[342070759,1731403837162,-500.0,0.00025364,2]
[342070760,1731403837171,-524.720566,0.00025364,2]
[342070761,1731403837181,-541.48,0.00025364,2]
[342070762,1731403837190,-500.0,0.00025364,2]
[342070763,1731403837199,-503.645809,0.00025364,2]
[342070764,1731403837210,-500.0,0.00025364,2]
[342070765,1731403837220,-544.86687167,0.00025364,2]
[342070766,1731403837229,-500.0,0.00025364,2]
[342070767,1731403837238,-500.0,0.00025364,2]
[342070768,1731403837247,-648.37675831,0.00025364,2]
[342070769,1731403837257,-500.0,0.00025364,2]
[342070770,1731403837267,-500.0,0.00025364,2]
[342070771,1731403837277,-500.0,0.00025364,2]
[342070772,1731403837286,-151.0,0.00025364,7]
[342070773,1731403837296,-184.713202,0.00025364,7]
[342070774,1731403837305,-534.05435722,0.00025364,2]
[342070775,1731403837315,-500.0,0.00025364,2]
[342070776,1731403837324,-640.39138322,0.00025364,2]
[342070777,1731403837336,-158.56382902,0.00025364,2]
[342070778,1731403837347,-500.0,0.00025364,2]
[342070779,1731403837360,-573.48,0.00025364,2]
[342070780,1731403837369,-500.0,0.00025364,2]
[342070781,1731403837378,-151.0,0.00025364,7]
[342070782,1731403837388,-500.0,0.00025364,2]
[342070783,1731403837398,-330.17331396,0.00025364,2]
[342070784,1731403837408,-151.0,0.00025364,7]
[342070785,1731403837417,-253.5337176,0.00025364,2]
[342070786,1731403837426,-151.0,0.00025364,7]
[342070787,1731403837435,-401.52459924,0.00025364,2]
[342070788,1731403837445,-500.0,0.00025364,2]
[342070789,1731403837455,-500.0,0.00025364,2]
[342070790,1731403837464,-500.0,0.00025364,2]
[342070791,1731403837473,-500.0,0.00025364,2]
[342070792,1731403837482,-4608.25,0.00025364,7]
[342070793,1731403837491,-4608.25,0.00025364,7]
[342070794,1731403837501,-315.68212952,0.00025364,2]
[342070795,1731403837512,-319.4889341,0.00025364,2]
[342070796,1731403837521,-500.0,0.00025364,2]
[342070797,1731403837530,-500.0,0.00025364,2]
[342070798,1731403837540,-151.0,0.00025364,7]
[342070799,1731403837549,-500.0,0.00025364,2]
[342070800,1731403837559,-179.200377,0.00025364,7]
[342070801,1731403837568,-179.200377,0.00025364,7]
[342070802,1731403837580,-482.91037892,0.00025364,2]
[342070803,1731403837747,-17.08962108,0.00025364,2]
[342070804,1731403837757,-500.0,0.00025364,2]
[342070805,1731403837767,-500.0,0.00025364,2]
[342070806,1731403837776,-151.0,0.00025364,7]
[342070807,1731403837786,-151.0,0.00025364,7]
[342070808,1731403837795,-500.0,0.00025365,2]
[342070809,1731403837810,-359.49096082,0.00025365,2]
[342070810,1731403837820,-529.01742182,0.00025365,2]
[342070811,1731403837832,-500.0,0.00025365,2]
[342070812,1731403837841,-237.581,0.00025365,10]
[342070813,1731403837851,-500.0,0.00025365,2]
[342070814,1731403837860,-500.0,0.00025365,2]
[342070815,1731403837870,-500.0,0.00025365,2]
[342070816,1731403837879,-500.0,0.00025365,2]
[342070817,1731403837888,-500.0,0.00025365,2]
[342070818,1731403837898,-500.0,0.00025365,2]
[342070820,1731403837907,-500.0,0.00025365,2]
[342070822,1731403837917,-500.0,0.00025365,2]
[342070823,1731403837927,-500.0,0.00025365,2]
[342070826,1731403837936,-500.0,0.00025365,2]
[342070828,1731403837945,-500.0,0.00025365,2]
[342070830,1731403837954,-500.0,0.00025365,2]
[342070832,1731403837963,-500.0,0.00025365,2]
[342070834,1731403837973,-500.0,0.00025365,2]
[342070835,1731403837985,-560.52581472,0.00025365,2]
[342070836,1731403837994,-547.80297096,0.00025365,2]
[342070837,1731403838004,-166.20039571,0.00025365,2]
[342070838,1731403838013,-500.0,0.00025365,2]
[342070839,1731403838023,-503.10449362,0.00025365,2]
[342070840,1731403838032,-500.0,0.00025365,2]
[342070841,1731403838042,-285.29233532,0.00025365,2]
[342070867,1731403838433,-215.27922012,0.00025365,2]
[342070869,1731403838443,-500.0,0.00025365,2]
[342070871,1731403838452,-500.0,0.00025365,2]
[342070873,1731403838462,-365.04708906,0.00025365,2]
[342070886,1731403838586,-134.95291094,0.00025365,2]
[342070888,1731403838596,-502.29047231,0.00025365,2]
[342070890,1731403838606,-534.37097449,0.00025365,2]
[342070892,1731403838615,-216.63564226,0.00025365,2]
[342070952,1731403843481,-500.0,0.00025342,2]
[342070953,1731403843491,-500.0,0.00025352,2]
[342070954,1731403843500,-151.0,0.00025354,7]
[342070955,1731403843509,-500.0,0.00025354,2]
[342070956,1731403843519,-151.0,0.00025364,7]
[342070957,1731403843528,-283.36435774,0.00025365,2]
[342070958,1731403843538,-124.14111789,0.00025365,2]
[342070959,1731403843549,-375.85888211,0.00025365,2]
[342070960,1731403843558,-500.0,0.00025365,2]
[342070961,1731403843568,-500.0,0.00025365,2]
[342070962,1731403843577,-565.73,0.00025365,2]
[342070963,1731403843590,-265.54649766,0.00025365,2]
[342070964,1731403843599,-500.0,0.00025365,2]
[342070965,1731403843608,-500.0,0.00025365,2]
[342070966,1731403843617,-500.0,0.00025365,2]
[342070967,1731403843626,-500.0,0.00025365,2]
[342070968,1731403843635,-501.94111731,0.00025365,2]
[342070969,1731403843644,-500.0,0.00025365,2]
[342070970,1731403843653,-500.0,0.00025365,2]
[342070971,1731403843663,-500.0,0.00025365,2]
[342070972,1731403843671,-314.12264292,0.00025365,2]
[342070973,1731403843680,-500.0,0.00025365,2]
[342070974,1731403843690,-441.58126531,0.00025365,2]
[342070975,1731403843699,-500.0,0.00025365,2]
[342070976,1731403843709,-500.0,0.00025365,2]
[342070977,1731403843718,-500.0,0.00025365,2]
[342070978,1731403843727,-151.0,0.00025365,7]
[342070979,1731403843736,-584.68,0.00025365,15]
[342070980,1731403843745,-151.0,0.00025365,7]
[342070981,1731403843755,-240.596342,0.00025365,7]
[342070982,1731403843765,-500.0,0.00025365,2]
[342070983,1731403843775,-302.76516271,0.00025365,2]
[342070984,1731403843784,-500.0,0.00025365,2]
[342070985,1731403843793,-500.0,0.00025365,2]
[342070986,1731403843802,-500.0,0.00025365,2]
[342070987,1731403843812,-608.74926885,0.00025365,2]
[342070988,1731403843821,-500.0,0.00025365,2]
[342070989,1731403843832,-4608.25,0.00025365,7]
[342070990,1731403843842,-4608.25,0.00025365,7]
[342070991,1731403843850,-500.0,0.00025365,2]
[342070992,1731403843859,-500.0,0.00025365,2]
[342070993,1731403843868,-500.0,0.00025365,2]
[342070994,1731403843880,-230.55131,0.00025365,7]
[342070995,1731403843892,-500.0,0.00025365,2]
[342070996,1731403843904,-500.0,0.00025365,2]
[342070997,1731403843917,-179.200377,0.00025365,7]
[342070998,1731403843929,-179.200377,0.00025365,7]
[342070999,1731403843941,-500.0,0.00025365,2]
[342071000,1731403843951,-151.0,0.00025365,7]
[342071001,1731403843961,-500.0,0.00025365,2]
[342071002,1731403843973,-151.0,0.00025365,7]
[342071003,1731403843984,-343.45361083,0.00025365,2]
[342071004,1731403843995,-177.086424,0.00025365,7]
[342071005,1731403844006,-500.0,0.00025366,2]
[342071006,1731403844018,-500.0,0.00025366,2]
[342071007,1731403844029,-500.0,0.00025366,2]
[342071008,1731403844041,-500.0,0.00025366,2]
[342071009,1731403844051,-500.0,0.00025366,2]
[342071010,1731403844063,-500.0,0.00025366,2]
[342071011,1731403844075,-151.0,0.00025366,7]
[342071012,1731403844088,-151.0,0.00025366,7]
[342071013,1731403844100,-151.0,0.00025366,7]
[342071014,1731403844112,-187.547291,0.00025366,7]
[342071015,1731403844122,-151.0,0.00025366,7]
[342071016,1731403844133,-151.0,0.00025366,7]
[342071017,1731403844144,-151.0,0.00025366,7]
[342071018,1731403844156,-151.0,0.00025366,7]
[342071019,1731403844168,-151.0,0.00025366,7]
[342071020,1731403844179,-151.0,0.00025366,7]
[342071021,1731403844190,-151.0,0.00025366,7]
[342071022,1731403844201,-151.0,0.00025366,7]
[342071023,1731403844213,-151.0,0.00025366,7]
[342071024,1731403844223,-151.0,0.00025366,7]
[342071025,1731403844233,-151.0,0.00025366,7]
[342071026,1731403844244,-4608.25,0.00025366,7]
[342071027,1731403844255,-4608.25,0.00025366,7]
[342071028,1731403844265,-179.200377,0.00025366,7]
[342071029,1731403844278,-179.200377,0.00025366,7]
[342071030,1731403844289,-151.0,0.00025366,7]
[342071031,1731403844300,-254.00742,0.00025366,7]
[342071032,1731403844312,-500.0,0.00025367,2]
[342071033,1731403844324,-505.85,0.00025367,2]
[342071034,1731403844338,-500.0,0.00025367,2]
[342071035,1731403844350,-500.0,0.00025367,2]
[342071036,1731403844364,-500.0,0.00025367,2]
[342071037,1731403844375,-500.0,0.00025367,2]
[342071038,1731403844386,-500.0,0.00025367,2]
[342071039,1731403844399,-500.0,0.00025367,2]
[342071040,1731403844410,-500.0,0.00025367,2]
[342071041,1731403844423,-500.0,0.00025367,2]
[342071042,1731403844435,-1144.15,0.00025367,2]
[342071043,1731403844445,-505.40304772,0.00025373,2]
[342071044,1731403844455,-500.0,0.00025373,2]
[342071045,1731403844466,-500.0,0.00025373,2]
[342071046,1731403844477,-500.0,0.00025373,2]
[342071047,1731403844490,-500.0,0.00025616,2]
[342071048,1731403844500,-500.0,0.00025626,2]
[342071049,1731403844512,-500.0,0.00025626,2]
[342071050,1731403844522,-500.0,0.00025626,2]
[342071051,1731403844532,-500.0,0.00025626,2]
[342071052,1731403844542,-1462.86,0.00025626,2]
[342071053,1731403844552,-500.0,0.00025626,2]
[342071054,1731403844563,-3149.48,0.00025626,2]
[342071055,1731403844574,-500.0,0.00025626,2]
[342071056,1731403844588,-500.0,0.00025626,2]
[342071057,1731403844599,-500.0,0.00025626,2]
[342071058,1731403844611,-285.64,0.00025628,2]
[342071059,1731403844621,-500.0,0.00025628,2]
[342071060,1731403844631,-500.0,0.00025628,2]
[342071061,1731403844642,-500.0,0.00025628,2]
[342071062,1731403844652,-500.0,0.00025628,2]
[342071063,1731403844663,-500.0,0.00025628,2]
[342071064,1731403844674,-500.0,0.00025628,2]
[342071065,1731403844684,-500.0,0.00025628,2]
[342071066,1731403844694,-500.0,0.00025628,2]
[342071067,1731403844704,-500.0,0.00025628,2]
[342071068,1731403844715,-819.54,0.00025628,2]
[342071069,1731403844725,-500.0,0.00025628,2]
[342071070,1731403844735,-500.0,0.00025628,2]
[342071071,1731403844746,-500.0,0.00025628,2]
[342071072,1731403844756,-500.0,0.00025628,2]
[342071073,1731403844766,-500.0,0.00025628,2]
[342071074,1731403844776,-500.0,0.00025628,2]
[342071075,1731403844786,-500.0,0.00025628,2]
[342071076,1731403844797,-151.0,0.00025628,7]
[342071077,1731403844808,-510.31,0.00025628,2]
[342071078,1731403844820,-500.0,0.00025628,2]
[342071079,1731403844833,-151.0,0.0002563,7]
[342071080,1731403844845,-224.748594,0.0002563,7]
[342071081,1731403844856,-224.748594,0.0002563,7]
[342071082,1731403844867,-219.587018,0.0002563,7]
[342071083,1731403844878,-219.587018,0.0002563,7]
[342071084,1731403844889,-500.0,0.00025638,2]
[342071085,1731403844900,-500.0,0.00025638,2]
[342071086,1731403844911,-500.0,0.00025638,2]
[342071087,1731403844922,-500.0,0.00025638,2]
[342071088,1731403844933,-500.0,0.00025638,2]
[342071089,1731403844943,-500.0,0.00025638,2]
[342071090,1731403844954,-500.0,0.00025638,2]
[342071091,1731403844964,-500.0,0.00025638,2]
[342071092,1731403844975,-500.0,0.00025638,2]
[342071093,1731403844985,-151.0,0.00025638,7]
[342071094,1731403844995,-213.19616,0.00025638,7]
[342071095,1731403845006,-500.0,0.00025638,2]
[342071096,1731403845016,-151.0,0.00025638,7]
[342071097,1731403845027,-500.0,0.00025638,2]
[342071098,1731403845038,-500.0,0.00025638,2]
[342071099,1731403845049,-151.0,0.00025638,7]
[342071100,1731403845059,-500.0,0.00025638,2]
[342071101,1731403845071,-573.48,0.00025638,2]
[342071102,1731403845083,-500.0,0.00025638,2]
[342071103,1731403845095,-151.0,0.00025638,7]
[342071104,1731403845106,-151.0,0.00025638,7]
[342071105,1731403845117,-151.0,0.00025638,7]
[342071106,1731403845129,-500.0,0.00025638,2]
[342071107,1731403845140,-500.0,0.00025638,2]
[342071108,1731403845151,-500.0,0.00025638,2]
[342071109,1731403845163,-500.0,0.00025638,2]
[342071110,1731403845174,-4608.25,0.00025638,7]
[342071111,1731403845184,-1285.30473758,0.00025638,7]
[342071112,1731403845206,-3263.91254572,0.00025638,7]
[342071142,1731404015263,400.0,0.00013973,2]
[342071143,1731404015475,400.0,0.00020447,2]
[342071144,1731404061828,270.17638347,0.00020743,2]
[342071161,1731404302494,1169.27083333,0.00020843,2]
[342071162,1731404303336,160.0,0.00020843,2]
[342071170,1731404613757,1169.27083333,0.00020843,2]
[342071171,1731404614952,160.0,0.00020843,2]
[342071173,1731404705746,360.0,0.00013973,2]
[342071174,1731404705973,360.0,0.00020447,2]
[342071179,1731404924772,1169.27083333,0.00020843,2]
[342071180,1731404926510,160.0,0.00020843,2]
[342071213,1731405033126,-600.2326,0.00020843,2]
[342071214,1731405033138,-569.03823333,0.00020843,2]
[342071215,1731405033148,-160.0,0.00020843,2]
[342071216,1731405033158,-191.70587064,0.000209,2]
[342071217,1731405033170,-674.27412936,0.000209,2]
[342071218,1731405033180,-163.0,0.00022,2]
[342071219,1731405033190,-42.35587064,0.00023432,2]
[342071220,1731405033201,-124.31079536,0.00023432,2]
[342071221,1731405033219,-850.187882,0.0002388,2]
[342071222,1731405033228,-266.140454,0.00023947,2]
[342071223,1731405033238,-178.406701,0.00024292,2]
[342071224,1731405033248,-178.406701,0.00024353,2]
[342071225,1731405033257,-178.406701,0.00024414,2]
[342071226,1731405033267,-850.187882,0.00024565,2]
[342071227,1731405033275,-380.0,0.00024658,2]
[342071228,1731405033285,-238.87437522,0.00024888,2]
[342071229,1731405033295,-436.66890813,0.00025,17]
[342071230,1731405033315,-63.33109187,0.00025,17]
[342071231,1731405033324,-300.0,0.00025215,2]
[342071232,1731405033335,-5048.7364977,0.00025216,2]
[342071233,1731405033345,-238.87437522,0.00025217,2]
[342071234,1731405033355,-1343.476839,0.00025228,2]
[342071235,1731405033365,-850.187882,0.0002525,2]
[342071236,1731405033374,-529.0,0.00025259,2]
[342071237,1731405033384,-1123.0,0.00025259,2]
[342071238,1731405033394,-623.493,0.00025259,2]
[342071239,1731405033403,-15639.64,0.00025315,10]
[342071240,1731405033413,-500.0,0.00025315,2]
[342071241,1731405033423,-716.06904533,0.00025316,2]
[342071242,1731405033433,-13021.56,0.00025316,10]
[342071243,1731405033443,-22521.08,0.00025316,10]
[342071244,1731405033452,-18767.57,0.00025316,10]
[342071245,1731405033465,-603.59,0.00025317,3]
[342071246,1731405033475,-603.57,0.00025317,3]
[342071247,1731405033484,-500.0,0.00025317,2]
[342071248,1731405033494,-500.0,0.00025317,2]
[342071249,1731405033503,-500.0,0.00025317,2]
[342071250,1731405033512,-500.0,0.00025317,2]
[342071251,1731405033522,-500.0,0.00025317,2]
[342071252,1731405033532,-1723.73,0.00025317,2]
[342071253,1731405033542,-500.0,0.00025317,2]
[342071254,1731405033551,-500.0,0.00025317,2]
[342071255,1731405033561,-500.0,0.00025317,2]
[342071256,1731405033572,-500.0,0.00025317,2]
[342071257,1731405033582,-500.0,0.00025317,2]
[342071258,1731405033591,-3661.9,0.00025317,2]
[342071259,1731405033601,-2798.43,0.00025317,2]
[342071260,1731405033610,-500.0,0.00025317,2]
[342071261,1731405033620,-500.0,0.00025317,2]
[342071262,1731405033629,-500.0,0.00025325,2]
[342071263,1731405033639,-500.0,0.00025325,2]
[342071264,1731405033648,-392.71442892,0.00025325,2]
[342071265,1731405033658,-503.18260888,0.00025325,2]
[342071266,1731405033668,-500.0,0.00025325,2]
[342071267,1731405033677,-536.89997814,0.00025325,2]
[342071268,1731405033686,-200.0,0.00025325,2]
[342071269,1731405033696,-500.0,0.00025325,2]
[342071270,1731405033709,-500.0,0.00025325,2]
[342071271,1731405033720,-500.0,0.00025325,14]
[342071272,1731405033729,-500.0,0.00025325,2]
[342071273,1731405033739,-500.0,0.00025325,2]
[342071274,1731405033750,-500.0,0.00025325,2]
[342071275,1731405033763,-500.0,0.00025325,2]
[342071276,1731405033772,-500.0,0.00025325,2]
[342071277,1731405033782,-500.0,0.00025325,2]
[342071278,1731405033793,-500.0,0.00025325,2]
[342071279,1731405033803,-500.0,0.00025325,2]
[342071280,1731405033813,-500.0,0.00025325,2]
[342071281,1731405033822,-500.0,0.00025325,2]
[342071282,1731405033834,-500.0,0.00025325,2]
[342071283,1731405033843,-513.2337159,0.00025325,2]
[342071284,1731405033852,-500.0,0.00025325,2]
[342071285,1731405033861,-500.0,0.00025325,2]
[342071286,1731405033871,-500.0,0.00025325,2]
[342071287,1731405033880,-500.0,0.00025325,2]
[342071288,1731405033889,-503.23258987,0.00025325,2]
[342071289,1731405033899,-500.0,0.00025325,2]
[342071290,1731405033908,-515.82199995,0.00025325,2]
[342071291,1731405033917,-502.31839164,0.00025325,2]
[342071292,1731405033927,-500.0,0.00025325,2]
[342071293,1731405033936,-500.0,0.00025325,2]
[342071294,1731405033946,-500.0,0.00025325,2]
[342071295,1731405033960,-500.0,0.00025325,2]
[342071296,1731405033970,-513.8090849,0.00025325,2]